bitfinex/quotes_BTCUSD_20241222
["timestamp","ask_amount","ask_price","bid_price","bid_amount"]
[1734891159413,0.2513084,95492.0,95467.0,0.11144228]
[1734891159414,0.359443,95491.0,95459.0,0.209514]
[1734891159608,0.2743084,95460.0,95459.0,0.20967652]
[1734891160217,0.2513084,95460.0,95459.0,0.20967652]
[1734891160384,0.2513084,95460.0,95459.0,0.30476242]
[1734891160892,0.2743084,95460.0,95459.0,0.20967652]
[1734891162050,0.2783084,95460.0,95459.0,0.30476242]
[1734891162253,0.2743084,95460.0,95459.0,0.20967652]
[1734891162569,0.2773084,95460.0,95459.0,0.30476242]
[1734891163000,0.2743084,95460.0,95459.0,0.30476242]
[1734891163178,0.2833084,95460.0,95459.0,0.30476242]
[1734891163582,0.2743084,95460.0,95459.0,0.30476242]
[1734891163858,0.2743084,95460.0,95459.0,0.30724968]
[1734891164055,0.2773084,95460.0,95459.0,0.30724968]
[1734891165947,0.1043084,95460.0,95459.0,0.30724968]
[1734891166149,0.003,95460.0,95459.0,0.38514968]
[1734891166571,0.1043084,95460.0,95459.0,0.38514968]
[1734891166776,0.1013084,95460.0,95459.0,0.38514968]
[1734891166979,0.1043084,95460.0,95459.0,0.38514968]
[1734891168251,0.1043084,95460.0,95459.0,0.38484968]
[1734891168453,0.1013084,95460.0,95459.0,0.38484968]
[1734891168657,0.1013084,95460.0,95459.0,0.38493558]
[1734891169282,0.6043084,95460.0,95459.0,0.38493558]
[1734891169490,0.6013084,95460.0,95459.0,0.38493558]
[1734891171233,0.60786376,95460.0,95459.0,0.38493558]
[1734891172616,0.60886376,95460.0,95459.0,0.38493558]
[1734891173278,0.50755536,95460.0,95459.0,0.38493558]
[1734891174022,0.75886376,95460.0,95459.0,0.38493558]
[1734891174627,0.75886376,95460.0,95459.0,0.37993558]
[1734891174813,0.7523084,95460.0,95459.0,0.37993558]
[1734891176378,0.7578642,95460.0,95459.0,0.37993558]
[1734891177003,0.7638642,95460.0,95459.0,0.37993558]
[1734891178469,0.7578642,95460.0,95459.0,0.37993558]
[1734891178675,0.7608642,95460.0,95459.0,0.37993558]
[1734891178878,0.7578642,95460.0,95459.0,0.37993558]
[1734891179279,0.7638642,95460.0,95459.0,0.37993558]
[1734891179449,0.7578642,95460.0,95459.0,0.37993558]
[1734891179978,0.7638642,95460.0,95459.0,0.37993558]
[1734891180192,0.7578642,95460.0,95459.0,0.37993558]
[1734891180969,0.7578642,95460.0,95459.0,0.30203558]
[1734891182201,0.7638642,95460.0,95459.0,0.30203558]
[1734891183937,0.5125558,95460.0,95459.0,0.30203558]
[1734891184147,0.5125558,95460.0,95459.0,0.40203558]
[1734891184365,0.5125558,95460.0,95459.0,0.48433558]
[1734891184568,0.5125558,95460.0,95459.0,0.53413558]
[1734891184785,0.3506518,95460.0,95459.0,0.63413558]
[1734891184968,0.0456,95523.0,95508.0,0.209405]
[1734891185175,0.1013084,95509.0,95508.0,0.209405]
[1734891185389,2.3553084,95509.0,95508.0,0.209405]
[1734891185641,1.2303084,95509.0,95508.0,0.209405]
[1734891185846,1.2303084,95509.0,95504.0,0.209413]
[1734891186071,1.7653084,95508.0,95498.0,0.3045139]
[1734891186275,0.1013084,95501.0,95498.0,0.0951393]
[1734891186676,0.15,95500.0,95498.0,0.0951393]
[1734891186898,0.009,95509.0,95498.0,0.0951393]
[1734891187030,0.2513084,95499.0,95498.0,0.0951393]
[1734891188488,0.2513084,95499.0,95498.0,0.0961393]
[1734891188685,0.2513084,95499.0,95498.0,0.0951393]
[1734891189115,0.2603084,95499.0,95498.0,0.0961393]
[1734891189322,0.2513084,95499.0,95498.0,0.0951393]
[1734891189700,0.2603084,95499.0,95498.0,0.0961393]
[1734891190101,0.2513084,95499.0,95498.0,0.0951393]
[1734891190314,1.0773084,95499.0,95498.0,5.34e-05]
[1734891190518,2.5823084,95499.0,95498.0,5.34e-05]
[1734891190773,2.7653084,95499.0,95498.0,5.34e-05]
[1734891190977,1.0653084,95499.0,95498.0,5.34e-05]
[1734891191179,0.01595967,95528.0,95498.0,5.34e-05]
[1734891191180,0.0803,95543.0,95517.0,0.0950859]
[1734891191378,0.1013084,95525.0,95523.0,0.209371]
[1734891191583,0.1013084,95524.0,95517.0,0.09965444]
[1734891191790,0.1013084,95523.0,95517.0,0.0950859]
[1734891192028,0.1013084,95523.0,95518.0,0.418768]
[1734891192420,0.15,95522.0,95518.0,0.418768]
[1734891192659,0.1013084,95521.0,95518.0,0.418768]
[1734891192847,0.15,95520.0,95518.0,0.418768]
[1734891193075,0.2513084,95519.0,95518.0,0.418768]
[1734891193475,0.2513084,95519.0,95518.0,0.209384]
[1734891194761,0.2513084,95519.0,95518.0,0.210384]
[1734891195003,0.2513084,95519.0,95518.0,0.209384]
[1734891195503,0.2563084,95519.0,95518.0,0.210384]
[1734891196178,0.2513084,95519.0,95518.0,0.209384]
[1734891196585,0.2563084,95519.0,95518.0,0.209384]
[1734891197627,0.28586081,95519.0,95518.0,0.209384]
[1734891197830,0.28086081,95519.0,95518.0,0.209384]
[1734891198257,0.28586081,95519.0,95518.0,0.209384]
[1734891199379,0.173,95518.0,95517.0,0.0950859]
[1734891199587,0.2743084,95518.0,95517.0,0.0950859]
[1734891199799,0.28086081,95518.0,95517.0,0.09965444]
[1734891201251,0.28486081,95518.0,95517.0,0.09737017]
[1734891201535,0.28486081,95518.0,95517.0,0.0950859]
[1734891205372,0.28486081,95518.0,95517.0,0.3044719]
[1734891208209,0.26186081,95518.0,95517.0,0.3044719]
[1734891208433,0.01055241,95518.0,95517.0,0.3044719]
[1734891209553,4.1e-07,95518.0,95517.0,0.4044719]
[1734891209728,4.1e-07,95518.0,95517.0,0.4820719]
[1734891210130,0.23273056,95559.0,95546.0,0.0950859]
[1734891210332,0.1013084,95551.0,95548.0,0.209318]
[1734891210541,0.1013084,95551.0,95550.0,0.0950859]
[1734891211372,0.1013084,95551.0,95550.0,0.0951393]
[1734891211573,0.1063084,95551.0,95550.0,0.0951393]
[1734891211991,0.2513084,95551.0,95550.0,0.0951393]
[1734891212143,0.10600941,95551.0,95550.0,0.0961393]
[1734891212575,0.10100941,95551.0,95550.0,0.0951393]
[1734891212791,0.0757,95585.0,95555.0,0.0950859]
[1734891212996,0.1014798,95556.0,95555.0,0.09613226]
[1734891213203,0.1014798,95556.0,95555.0,0.0950859]
[1734891214143,0.2514798,95556.0,95555.0,0.0950859]
[1734891214680,0.2514798,95556.0,95550.0,5.34e-05]
[1734891214681,0.173,95555.0,95550.0,5.34e-05]
[1734891214879,0.2743084,95551.0,95550.0,5.34e-05]
[1734891215154,3.1443084,95551.0,95550.0,5.34e-05]
[1734891215348,2.5753084,95551.0,95550.0,5.34e-05]
[1734891216313,2.6510084,95551.0,95550.0,5.34e-05]
[1734891217549,2.6570084,95551.0,95550.0,0.0010534]
[1734891217711,2.6510084,95551.0,95550.0,5.34e-05]
[1734891218123,2.6600084,95551.0,95550.0,0.0010534]
[1734891218344,2.6510084,95551.0,95550.0,5.34e-05]
[1734891218827,2.6600084,95551.0,95550.0,0.0010534]
[1734891219037,2.6510084,95551.0,95550.0,5.34e-05]
[1734891219382,2.6600084,95551.0,95550.0,0.0010534]
[1734891219747,2.7936204,95551.0,95550.0,0.0010534]
[1734891220486,4.9646204,95551.0,95550.0,0.0010534]
[1734891220682,4.9556204,95551.0,95550.0,5.34e-05]
[1734891221108,4.9646204,95551.0,95550.0,5.34e-05]
[1734891221271,4.9556204,95551.0,95550.0,5.34e-05]
[1734891221476,4.9646204,95551.0,95550.0,5.34e-05]
[1734891221889,4.9556204,95551.0,95550.0,5.34e-05]
[1734891222075,4.9646204,95551.0,95550.0,5.34e-05]
[1734891222491,4.9556204,95551.0,95550.0,5.34e-05]
[1734891222692,4.96217175,95551.0,95550.0,5.34e-05]
[1734891224311,4.97117175,95551.0,95550.0,5.34e-05]
[1734891224708,4.96217175,95551.0,95550.0,5.34e-05]
[1734891224913,4.97117175,95551.0,95550.0,5.34e-05]
[1734891225115,4.96217175,95551.0,95550.0,5.34e-05]
[1734891225554,4.97117175,95551.0,95550.0,5.34e-05]
[1734891227831,4.76185975,95551.0,95550.0,5.34e-05]
[1734891228383,4.58885975,95551.0,95550.0,5.34e-05]
[1734891229232,4.57985975,95551.0,95550.0,5.34e-05]
[1734891229412,4.72985975,95551.0,95550.0,0.0001389]
[1734891229612,4.73003075,95551.0,95550.0,0.0001389]
[1734891230033,4.75303075,95551.0,95550.0,0.0001389]
[1734891230940,0.28603075,95551.0,95550.0,0.0001389]
[1734891231142,4.75303075,95551.0,95550.0,0.0001389]
[1734891231586,4.76203075,95551.0,95550.0,0.0001389]
[1734891231797,4.75303075,95551.0,95550.0,0.0001389]
[1734891232168,4.76203075,95551.0,95550.0,0.0001389]
[1734891232569,4.75303075,95551.0,95550.0,0.0001389]
[1734891234106,4.76103075,95551.0,95550.0,0.0001389]
[1734891234303,4.75303075,95551.0,95550.0,0.0001389]
[1734891234718,4.76203075,95551.0,95550.0,0.0001389]
[1734891235542,4.75303075,95551.0,95550.0,0.0001389]
[1734891235749,4.76203075,95551.0,95550.0,0.0001389]
[1734891235977,4.78168605,95551.0,95550.0,0.0001389]
[1734891237221,4.77268605,95551.0,95550.0,0.0001389]
[1734891237840,4.78168605,95551.0,95550.0,0.0001389]
[1734891238211,4.76203075,95551.0,95550.0,0.0001389]
[1734891239743,4.7554794,95551.0,95550.0,0.0001389]
[1734891240996,4.76203075,95551.0,95550.0,0.0001389]
[1734891243159,4.61203075,95551.0,95550.0,0.0952248]
[1734891244238,4.60303075,95551.0,95550.0,0.0952248]
[1734891244394,4.75703075,95551.0,95550.0,0.0952248]
[1734891244824,4.75303075,95551.0,95550.0,0.0952248]
[1734891245025,4.67403075,95551.0,95550.0,0.0952248]
[1734891245229,4.67803075,95551.0,95550.0,0.0952248]
[1734891245386,4.65603075,95551.0,95550.0,0.0952248]
[1734891245765,4.43403075,95551.0,95550.0,0.0952248]
[1734891245886,4.39503075,95551.0,95550.0,0.0952248]
[1734891246087,4.38403075,95551.0,95550.0,0.0952248]
[1734891246514,0.26203075,95551.0,95550.0,0.0952248]
[1734891246917,0.26703075,95551.0,95550.0,0.0952248]
[1734891248002,0.27203075,95551.0,95550.0,0.0952248]
[1734891248210,0.25803075,95551.0,95550.0,0.0952248]
[1734891248675,0.26203075,95551.0,95550.0,0.0952248]
[1734891249004,0.16072235,95551.0,95550.0,0.0952248]
[1734891249205,0.01072235,95551.0,95550.0,0.0952248]
[1734891249650,0.023,95580.0,95556.0,0.0950859]
[1734891249822,0.023,95572.0,95571.0,0.209266]
[1734891250042,1.5143084,95572.0,95571.0,0.209266]
[1734891250372,0.7383084,95572.0,95571.0,0.418533]
[1734891250858,0.5883084,95572.0,95571.0,0.418533]
[1734891250987,0.5883084,95572.0,95571.0,0.5136189]
[1734891251190,0.1013084,95572.0,95571.0,0.5136189]
[1734891251393,0.0001714,95574.0,95573.0,0.0950859]
[1734891252040,0.0001714,95574.0,95573.0,0.09613207]
[1734891252278,0.0001714,95574.0,95573.0,0.19613207]
[1734891252885,0.0001714,95574.0,95573.0,0.27663207]
[1734891253036,0.0001714,95574.0,95573.0,0.2755859]
[1734891253451,0.0051714,95574.0,95573.0,0.2765859]
[1734891253651,0.0051714,95574.0,95573.0,0.2755859]
[1734891254038,0.0051714,95574.0,95573.0,0.2775859]
[1734891255589,4.7284798,95574.0,95573.0,0.002]
[1734891255790,4.84212545,95574.0,95573.0,0.002]
[1734891256231,4.85301679,95574.0,95573.0,0.002]
[1734891256794,0.173,95564.0,95558.0,0.09293523]
[1734891256970,0.2743084,95559.0,95558.0,0.09293523]
[1734891257171,4.4503084,95559.0,95558.0,0.09293523]
[1734891257375,4.4343084,95559.0,95558.0,0.09293523]
[1734891257890,4.4343084,95559.0,95556.0,0.13940284]
[1734891257891,4.4343084,95559.0,95554.0,0.0950859]
[1734891258089,0.173,95556.0,95552.0,0.0950859]
[1734891258304,0.023,95551.0,95550.0,0.0001389]
[1734891258474,4.7463084,95551.0,95550.0,0.0001389]
[1734891258642,3.5453084,95551.0,95550.0,0.0952248]
[1734891258832,0.2743084,95551.0,95550.0,0.0952248]
[1734891260509,0.2763084,95551.0,95550.0,0.0952248]
[1734891260887,0.2743084,95551.0,95550.0,0.0952248]
[1734891261030,0.2763084,95551.0,95550.0,0.0952248]
[1734891261243,0.2743084,95551.0,95550.0,0.0952248]
[1734891261652,0.28085873,95551.0,95550.0,0.0952248]
[1734891262682,0.28285873,95551.0,95550.0,0.0952248]
[1734891263084,0.28085873,95551.0,95550.0,0.0952248]
[1734891263257,0.28285873,95551.0,95550.0,0.0952248]
[1734891264747,0.25985873,95551.0,95550.0,0.0952248]
[1734891265109,0.10985873,95551.0,95550.0,0.0952248]
[1734891265968,0.10985873,95551.0,95550.0,0.1750248]
[1734891265969,0.10785873,95551.0,95550.0,0.1750248]
[1734891266340,0.10785873,95551.0,95550.0,0.1770248]
[1734891266689,0.25785873,95551.0,95550.0,0.1770248]
[1734891267038,0.25785873,95551.0,95550.0,0.1750248]
[1734891267434,0.25885873,95551.0,95550.0,0.1750248]
[1734891268843,0.25785873,95551.0,95550.0,0.1750248]
[1734891269259,0.25785873,95551.0,95550.0,0.1760248]
[1734891269494,0.25785873,95551.0,95550.0,0.1750248]
[1734891269891,0.25785873,95551.0,95550.0,0.1760248]
[1734891271382,0.00655033,95551.0,95550.0,0.1760248]
[1734891271634,0.00655033,95551.0,95550.0,0.19727115]
[1734891271891,0.00655033,95551.0,95550.0,0.0962248]
[1734891272103,0.10785873,95551.0,95550.0,0.0962248]
[1734891272636,0.10785873,95551.0,95550.0,0.0952248]
[1734891273012,0.28085873,95551.0,95550.0,0.0001389]
[1734891273338,0.28185873,95551.0,95550.0,0.0952248]
[1734891273686,0.28085873,95551.0,95550.0,0.0952248]
[1734891273960,0.28085873,95551.0,95550.0,0.0001389]
[1734891274122,0.28385873,95551.0,95550.0,0.0001389]
[1734891274352,0.28385873,95551.0,95550.0,0.0952248]
[1734891274903,0.26085873,95551.0,95550.0,0.0952248]
[1734891275483,0.25785873,95551.0,95550.0,0.0952248]
[1734891275887,0.26285873,95551.0,95550.0,0.0952248]
[1734891276090,0.10785873,95551.0,95550.0,0.0952248]
[1734891276297,0.00655033,95551.0,95550.0,0.1750248]
[1734891276495,0.00755033,95551.0,95550.0,0.1750248]
[1734891276771,0.00755033,95551.0,95550.0,0.22397119]
[1734891276901,0.00755033,95551.0,95550.0,0.3229248]
[1734891277301,0.001,95551.0,95550.0,0.3229248]
[1734891278697,0.00655033,95562.0,95561.0,0.3043759]
[1734891281795,0.00655033,95562.0,95561.0,0.3063759]
[1734891284723,0.25785873,95562.0,95561.0,0.002]
[1734891284942,2.84885873,95562.0,95561.0,0.002]
[1734891285103,4.25574845,95562.0,95561.0,0.002]
[1734891285304,2.47674845,95562.0,95561.0,0.002]
[1734891285712,0.38229,95561.0,95557.0,0.0950859]
[1734891285912,0.2743084,95558.0,95557.0,0.0950859]
[1734891286740,0.28085873,95558.0,95557.0,0.0950859]
[1734891288786,0.28785873,95558.0,95557.0,0.0960859]
[1734891291660,0.28785873,95558.0,95557.0,0.001]
[1734891291661,4.75985873,95558.0,95557.0,0.001]
[1734891292028,4.84913064,95558.0,95557.0,0.001]
[1734891292425,0.382312,95551.0,95550.0,0.0001389]
[1734891292640,4.9556204,95551.0,95550.0,0.0001389]
[1734891292830,0.4836204,95551.0,95550.0,0.0001389]
[1734891293020,4.9556204,95551.0,95550.0,0.0001389]
[1734891293394,4.96217073,95551.0,95550.0,0.0001389]
[1734891294021,4.96617073,95551.0,95550.0,0.0001389]
[1734891294789,4.97992657,95551.0,95550.0,0.0001389]
[1734891295316,4.77061457,95551.0,95550.0,0.0001389]
[1734891299599,4.76661457,95551.0,95550.0,0.0001389]
[1734891299923,4.77561457,95551.0,95550.0,0.0011389]
[1734891301238,4.90292867,95551.0,95550.0,0.0011389]
[1734891301411,4.90292867,95551.0,95522.0,0.0950859]
[1734891301412,0.173,95526.0,95522.0,0.0950859]
[1734891301671,0.173,95524.0,95522.0,0.09521618]
[1734891301863,0.4836794,95524.0,95522.0,0.09521618]
[1734891302073,0.2743084,95524.0,95523.0,0.0950859]
[1734891302286,0.2743084,95524.0,95523.0,0.3044589]
[1734891302472,0.2743084,95524.0,95523.0,0.0950859]
[1734891302864,0.29528897,95524.0,95523.0,0.0950859]
[1734891303041,0.2743084,95524.0,95523.0,0.0950859]
[1734891304879,0.2813084,95524.0,95523.0,0.0950859]
[1734891305204,0.2743084,95524.0,95523.0,0.0950859]
[1734891305351,0.28086076,95524.0,95523.0,0.0950859]
[1734891305572,0.16355236,95524.0,95523.0,0.1777859]
[1734891305784,0.00655236,95524.0,95523.0,0.1777859]
[1734891306185,0.01255236,95524.0,95523.0,0.1777859]
[1734891306998,0.11386076,95524.0,95523.0,0.0950859]
[1734891307159,0.13686076,95524.0,95523.0,0.0950859]
[1734891307989,0.13086076,95524.0,95523.0,0.0950859]
[1734891310271,0.10786076,95524.0,95523.0,0.0950859]
[1734891310564,0.00655236,95524.0,95523.0,0.0950859]
[1734891310899,0.00655236,95524.0,95523.0,0.209373]
[1734891311105,0.00655236,95524.0,95522.0,0.00013028]
[1734891311106,0.15,95523.0,95522.0,0.00013028]
[1734891311304,0.2513084,95523.0,95522.0,0.00021578]
[1734891311525,0.25786076,95523.0,95522.0,0.09530168]
[1734891311794,0.28086076,95523.0,95522.0,0.09530168]
[1734891312539,0.28686076,95523.0,95522.0,0.09530168]
[1734891312791,0.2913446,95523.0,95522.0,0.09530168]
[1734891313969,0.2973446,95523.0,95522.0,0.30467668]
[1734891314171,0.28686076,95523.0,95522.0,0.30467668]
[1734891314597,0.28686076,95523.0,95522.0,0.09530168]
[1734891315170,0.28086076,95523.0,95522.0,0.09530168]
[1734891315409,0.29134453,95523.0,95522.0,0.09530168]
[1734891315575,0.29434453,95523.0,95522.0,0.09530168]
[1734891315770,0.29134453,95523.0,95522.0,0.09530168]
[1734891316037,0.28086076,95523.0,95522.0,0.09530168]
[1734891316180,0.28686076,95523.0,95522.0,0.09530168]
[1734891317027,0.29734444,95523.0,95522.0,0.09530168]
[1734891320365,0.27434444,95523.0,95522.0,0.09530168]
[1734891321025,0.01255236,95523.0,95522.0,0.17030168]
[1734891322000,0.00655236,95523.0,95522.0,0.1713483]
[1734891322399,0.01155236,95523.0,95522.0,0.2713483]
[1734891322603,0.00655236,95523.0,95522.0,0.27030168]
[1734891323731,0.00955236,95523.0,95522.0,0.27030168]
[1734891323864,0.00655236,95523.0,95522.0,0.27030168]
[1734891324560,0.09326322,95565.0,95549.0,0.0950859]
[1734891324801,0.1014794,95550.0,95549.0,0.0950859]
[1734891325628,0.0964794,95550.0,95549.0,0.0950859]
[1734891325848,0.09326322,95565.0,95564.0,0.3043689]
[1734891326032,0.19457162,95565.0,95564.0,0.3043689]
[1734891326196,0.1014794,95565.0,95564.0,0.3043689]
[1734891327045,0.11101893,95565.0,95564.0,0.3043689]
[1734891327422,0.00971053,95565.0,95564.0,0.3043689]
[1734891328359,0.00071053,95565.0,95564.0,0.3043689]
[1734891328773,0.00671053,95565.0,95564.0,0.3043689]
[1734891328991,0.00071053,95565.0,95564.0,0.3043689]
[1734891330044,0.00071053,95565.0,95564.0,0.4043689]
[1734891333618,0.15,95564.0,95553.0,0.0950859]
[1734891333732,0.15,95564.0,95532.0,0.0783]
[1734891333733,0.173,95557.0,95545.0,0.30225923]
[1734891333941,0.173,95555.0,95548.0,0.0950859]
[1734891334176,0.173,95553.0,95545.0,0.30225923]
[1734891334392,0.173,95551.0,95545.0,0.30225923]
[1734891334700,0.15,95549.0,95545.0,0.30225923]
[1734891334908,0.173,95551.0,95540.0,0.41867]
[1734891334909,0.15,95547.0,95540.0,0.41867]
[1734891335218,0.15,95545.0,95540.0,0.41867]
[1734891335418,0.1013084,95544.0,95540.0,0.41867]
[1734891335632,0.1013084,95544.0,95543.0,0.0950859]
[1734891335773,0.2513084,95544.0,95543.0,0.0950859]
[1734891336417,0.15,95543.0,95540.0,0.41867]
[1734891336654,0.15,95543.0,95542.0,0.0950859]
[1734891336861,0.2513084,95543.0,95540.0,0.41867]
[1734891337072,0.15,95543.0,95542.0,0.0950859]
[1734891337391,0.00655045,95549.0,95542.0,0.0950859]
[1734891337843,0.02955045,95549.0,95548.0,0.3044039]
[1734891338042,0.2513084,95549.0,95548.0,0.3044039]
[1734891338646,0.25785861,95549.0,95548.0,0.3044039]
[1734891339067,0.15655021,95549.0,95548.0,0.3044039]
[1734891339271,0.01055021,95549.0,95548.0,0.3044039]
[1734891339467,0.00655021,95549.0,95548.0,0.3827039]
[1734891339860,0.01055021,95549.0,95548.0,0.4827039]
[1734891340480,0.004,95549.0,95548.0,0.6291039]
[1734891341308,0.00071053,95565.0,95564.0,0.3043689]
[1734891342892,0.00071053,95565.0,95564.0,0.3053689]
[1734891344462,0.00071053,95565.0,95564.0,0.3043689]
[1734891345917,0.00171053,95565.0,95564.0,0.3043689]
[1734891346527,0.00171053,95565.0,95564.0,0.4043689]
[1734891346731,0.00171053,95565.0,95564.0,0.5850689]
[1734891347385,0.02943214,95594.0,95593.0,0.20922]
[1734891347593,0.13074054,95594.0,95593.0,0.20922]
[1734891347818,0.13074054,95594.0,95593.0,0.3043059]
[1734891348015,0.28074054,95594.0,95593.0,0.3043059]
[1734891348605,0.28874054,95594.0,95593.0,0.30443618]
[1734891349361,0.28074054,95594.0,95593.0,0.30443618]
[1734891349658,0.26074054,95594.0,95593.0,0.30443618]
[1734891349860,0.15943214,95594.0,95593.0,0.30443618]
[1734891350061,0.00943214,95594.0,95593.0,0.30443618]
[1734891351075,0.00643214,95594.0,95593.0,0.30443618]
[1734891351427,0.00643214,95594.0,95593.0,0.30543618]
[1734891351634,0.00643214,95594.0,95593.0,0.30443618]
[1734891352107,0.00643214,95594.0,95593.0,0.30543618]
[1734891352237,0.00643214,95594.0,95593.0,0.30443618]
[1734891352622,0.10774054,95594.0,95593.0,0.09621618]
[1734891352823,3.37345735,95594.0,95593.0,0.00113028]
[1734891353027,3.38910579,95594.0,95593.0,0.00013028]
[1734891354546,3.37738898,95594.0,95593.0,0.00113028]
[1734891354800,3.26738898,95594.0,95593.0,0.00013028]
[1734891355239,3.27638898,95594.0,95593.0,0.00013028]
[1734891355435,3.26738898,95594.0,95593.0,0.00013028]
[1734891355644,2.28138898,95594.0,95593.0,0.00013028]
[1734891355986,0.28974054,95594.0,95593.0,0.00013028]
[1734891356266,0.28974054,95594.0,95593.0,0.09521618]
[1734891356667,0.26674054,95594.0,95593.0,0.09521618]
[1734891357845,0.25774054,95594.0,95593.0,0.09521618]
[1734891358028,0.26674054,95594.0,95593.0,0.09521618]
[1734891358430,0.01543214,95594.0,95593.0,0.09521618]
[1734891358878,0.00643214,95594.0,95593.0,0.09521618]
[1734891359295,0.01543214,95594.0,95593.0,0.09521618]
[1734891359470,0.00643214,95594.0,95593.0,0.09521618]
[1734891360026,0.00660334,95594.0,95593.0,0.09626213]
[1734891360429,0.00660334,95594.0,95593.0,0.09521618]
[1734891360831,0.00660334,95594.0,95593.0,0.09626212]
[1734891360971,0.00660334,95594.0,95593.0,0.09521618]
[1734891361788,0.00860334,95594.0,95593.0,0.09521618]
[1734891362781,0.00660334,95594.0,95593.0,0.09521618]
[1734891362925,0.01160334,95594.0,95593.0,0.09521618]
[1734891363326,0.25791174,95594.0,95593.0,0.09521618]
[1734891363753,0.25791174,95594.0,95593.0,0.09621618]
[1734891364352,0.28091174,95594.0,95593.0,0.09621618]
[1734891364722,0.25791174,95594.0,95593.0,0.09621618]
[1734891364894,0.25791174,95594.0,95593.0,0.09521618]
[1734891365249,0.26691174,95594.0,95593.0,0.09521618]
[1734891365450,0.01560334,95594.0,95593.0,0.09626222]
[1734891365876,0.01560334,95594.0,95593.0,0.19626222]
[1734891366082,0.0001712,95594.0,95593.0,0.19626222]
[1734891366283,0.00671752,95594.0,95593.0,0.19626195]
[1734891366480,0.00454458,95594.0,95593.0,0.19626195]
[1734891366721,4e-07,95595.0,95594.0,0.5848039]
[1734891368818,0.0010004,95595.0,95594.0,0.5908039]
[1734891369033,0.0001714,95615.0,95614.0,0.0950859]
[1734891369239,0.0001714,95615.0,95614.0,0.3042599]
[1734891369847,0.0001712,95646.0,95645.0,0.209106]
[1734891370048,0.1014796,95646.0,95645.0,0.209106]
[1734891370871,0.1014796,95646.0,95645.0,0.3041919]
[1734891371077,0.1014796,95646.0,95645.0,0.30432218]
[1734891372144,0.1104796,95646.0,95645.0,0.30532218]
[1734891372348,0.1591712,95646.0,95645.0,0.30532218]
[1734891372979,0.1501712,95646.0,95645.0,0.30432218]
[1734891373173,0.0001714,95647.0,95646.0,0.0950859]
[1734891373512,0.0001714,95647.0,95646.0,0.09613121]
[1734891373829,0.0001714,95647.0,95646.0,0.0950859]
[1734891374029,0.0833,95646.0,95645.0,0.00013028]
[1734891374234,4.6597124,95646.0,95645.0,0.00013028]
[1734891374437,4.66865833,95646.0,95645.0,0.00013028]
[1734891374678,4.66852065,95646.0,95645.0,0.00013028]
[1734891374882,1.4087124,95646.0,95645.0,0.00013028]
[1734891375040,1.38052421,95646.0,95645.0,0.00013028]
[1734891375242,0.3576084,95646.0,95645.0,0.00013028]
[1734891375668,0.3436084,95646.0,95645.0,0.00113028]
[1734891376088,0.2603084,95646.0,95645.0,0.00113028]
[1734891376287,0.2513084,95646.0,95645.0,0.00013028]
[1734891376809,0.2513084,95646.0,95645.0,0.09521618]
[1734891377864,0.2603084,95646.0,95645.0,0.09621618]
[1734891378070,0.2513084,95646.0,95645.0,0.09521618]
[1734891378237,0.2553084,95646.0,95645.0,0.09521618]
[1734891379029,0.26185235,95646.0,95645.0,0.09521618]
[1734891381481,0.25785235,95646.0,95645.0,0.09521618]
[1734891381896,0.25985235,95646.0,95645.0,0.09521618]
[1734891382096,0.25985235,95646.0,95645.0,0.00013028]
[1734891382456,1.02815235,95646.0,95645.0,0.09521618]
[1734891382628,0.25785235,95646.0,95645.0,0.09521618]
[1734891384333,0.25885235,95646.0,95645.0,0.09521618]
[1734891385187,0.25885235,95646.0,95645.0,0.09538718]
[1734891385544,0.15762945,95646.0,95645.0,0.09538718]
[1734891385734,0.00762945,95646.0,95645.0,0.09538718]
[1734891385935,0.00762945,95646.0,95645.0,0.09643254]
[1734891392101,0.00762945,95646.0,95645.0,0.19643254]
[1734891393173,0.00762945,95646.0,95645.0,0.29643254]
[1734891393375,0.00762945,95646.0,95645.0,0.29538718]
[1734891393578,2.5e-07,95651.0,95650.0,0.2950859]
[1734891393781,2.5e-07,95651.0,95650.0,0.3712859]
[1734891394420,2.5e-07,95651.0,95650.0,0.5803809]
[1734891394608,2.5e-07,95651.0,95650.0,0.4803809]
[1734891394781,0.00100025,95651.0,95650.0,0.4873809]
[1734891394989,0.00100025,95651.0,95650.0,0.5873809]
[1734891395193,2.5e-07,95651.0,95650.0,0.5803809]
[1734891395392,0.00100025,95651.0,95650.0,0.4893809]
[1734891395906,2.5e-07,95651.0,95650.0,0.5803809]
[1734891397096,0.00100025,95651.0,95650.0,0.4873809]
[1734891397299,0.00100025,95651.0,95650.0,0.5873809]
[1734891397535,2.5e-07,95651.0,95650.0,0.5803809]
[1734891397900,0.00100025,95651.0,95650.0,0.5883809]
[1734891398888,0.00096025,95651.0,95650.0,0.5883809]
[1734891400950,0.00096025,95651.0,95650.0,0.3121809]
[1734891401122,0.10226865,95651.0,95650.0,0.3121809]
[1734891401551,0.10226865,95651.0,95650.0,0.217095]
[1734891402114,0.1013084,95651.0,95650.0,0.3041809]
[1734891403534,0.1013084,95651.0,95650.0,0.3081809]
[1734891404047,0.1013084,95651.0,95650.0,0.3041809]
[1734891404260,0.1033084,95651.0,95650.0,0.3041809]
[1734891404458,0.1013084,95651.0,95650.0,0.3041809]
[1734891404896,0.1013084,95651.0,95650.0,0.3051809]
[1734891406298,0.10785147,95651.0,95650.0,0.3051809]
[1734891406678,0.10785147,95651.0,95650.0,0.31928406]
[1734891407360,0.00654307,95651.0,95650.0,0.31928406]
[1734891407786,7e-08,95651.0,95650.0,0.6839893]
[1734891407992,6.7e-07,95656.0,95655.0,0.5816699]
[1734891408191,0.0001712,95661.0,95655.0,0.5816699]
[1734891408192,8.7e-07,95661.0,95660.0,0.6299589]
[1734891408777,0.0001712,95690.0,95669.0,0.5041399]
[1734891408778,7e-08,95670.0,95669.0,0.5041399]
[1734891408976,7e-08,95670.0,95669.0,0.5816399]
[1734891410137,0.09327939,95687.0,95686.0,0.2950859]
[1734891410367,0.13991909,95689.0,95688.0,0.2950859]
[1734891410565,0.0001712,95690.0,95689.0,1.0400959]
[1734891410566,2e-07,95690.0,95689.0,1.0400959]
[1734891410784,2e-07,95690.0,95689.0,1.1414043]
[1734891411496,0.0005404,95690.0,95689.0,1.1414043]
[1734891412263,4e-07,95690.0,95689.0,1.1414043]
[1734891412459,4e-07,95690.0,95689.0,1.1504043]
[1734891413003,4e-07,95690.0,95689.0,1.16429116]
[1734891413234,4e-07,95690.0,95689.0,1.30473688]
[1734891413752,4e-07,95690.0,95689.0,0.89445572]
[1734891413957,4e-07,95690.0,95689.0,0.98954162]
[1734891414158,4e-07,95690.0,95689.0,1.08954162]
[1734891414359,4e-07,95690.0,95689.0,1.18954162]
[1734891414561,4e-07,95690.0,95689.0,0.65354162]
[1734891414816,4e-07,95690.0,95689.0,0.5130959]
[1734891415191,0.15,95727.0,95714.0,0.3040409]
[1734891415398,0.25164203,95715.0,95714.0,0.3040409]
[1734891416045,0.25164203,95715.0,95714.0,0.0950859]